fUSD/lending_fUSD_20240118
["ID","MTS","AMOUNT","RATE_DAILY","PERIOD"]
[312064408,1705594239051,-287.6524677,0.00021791,2]
[312064410,1705594239060,-160.31660961,0.00021791,2]
[312064412,1705594239069,-162.11132826,0.00021791,2]
[312064415,1705594239081,-155.38053658,0.00021791,2]
[312064417,1705594239090,-309.79583088,0.00021791,2]
[312064419,1705594239099,-193.50856685,0.00021791,2]
[312064421,1705594239108,-155.89714604,0.00021791,2]
[312064423,1705594239117,-155.43398215,0.00021791,2]
[312064425,1705594239126,-242.15573671,0.00021791,2]
[312064427,1705594239136,-155.0,0.00021791,2]
[312064429,1705594239145,-156.74356452,0.00021791,2]
[312064431,1705594239154,-400.0,0.00021791,2]
[312064433,1705594239164,-155.0,0.00021791,2]
[312064435,1705594239173,-173.51625013,0.00021791,2]
[312064437,1705594239182,-22904.2505705,0.00021792,2]
[312064439,1705594239191,-39727.37936221,0.00021792,2]
[312064442,1705594239207,-1631.5164132,0.00021792,2]
[312064444,1705594239218,-636.9005323,0.00021792,2]
[312064446,1705594239229,-8861.04165548,0.00021792,2]
[312064448,1705594239240,-275.96458678,0.00021792,2]
[312064450,1705594239251,-481.70408771,0.00021792,2]
[312064453,1705594239262,-19199.23526344,0.00021792,2]
[312064455,1705594239272,-3806.3219132,0.00021792,2]
[312064457,1705594239283,-3253.82011228,0.00021792,2]
[312064458,1705594239292,-12612.4750733,0.00021792,2]
[312064460,1705594239301,-24896.2320007,0.00021792,2]
[312064462,1705594239310,-2000.0,0.00021793,2]
[312064464,1705594239319,-200.0,0.00021793,2]
[312064466,1705594239328,-2000.0,0.00021793,2]
[312064468,1705594239337,-200.0,0.00021793,2]
[312064470,1705594239347,-2000.0,0.00021793,2]
[312064472,1705594239356,-200.0,0.00021793,2]
[312064474,1705594239365,-1556.049,0.00021794,2]
[312064476,1705594239374,-1613.3391,0.00021794,2]
[312064478,1705594239383,-300.0,0.00021798,2]
[312064480,1705594239392,-19181.40187073,0.000218,2]
[312064483,1705594239410,-150.0,0.00021807,2]
[312064486,1705594239421,-2000.0,0.00021818,2]
[312064488,1705594239430,-200.0,0.00021818,2]
[312064490,1705594239439,-1135.82821277,0.00021819,2]
[312064492,1705594239451,-38415.22822888,0.00021819,2]
[312064494,1705594239462,-17931.96152875,0.00021819,2]
[312064496,1705594239471,-1583.3516548,0.00021819,2]
[312064498,1705594239481,-1971.6266465,0.00021819,2]
[312064500,1705594239490,-4271.1660868,0.00021834,2]
[312064502,1705594239499,-154.79,0.00021875,2]
[312064504,1705594239509,-150.0,0.0002189,4]
[312064506,1705594239518,-53139.00883344,0.00021894,2]
[312064508,1705594239530,-17572.93546656,0.00021894,2]
[312064510,1705594239539,-5000.0,0.00021899,2]
[312064512,1705594239549,-184.13974983,0.00021899,2]
[312064515,1705594239558,-200.0,0.000219,7]
[312064517,1705594239568,-715.94,0.000219,2]
[312064519,1705594239577,-721.02,0.000219,2]
[312064521,1705594239587,-129364.52515324,0.000219,2]
[312064523,1705594239597,-750.0,0.000219,2]
[312064525,1705594239607,-2996.95,0.000219,2]
[312064527,1705594239617,-152.91,0.00021908,2]
[312064529,1705594239626,-250.0,0.00021918,2]
[312064531,1705594239636,-160.0,0.00021967,2]
[312064533,1705594239645,-154.79,0.00021984,2]
[312064535,1705594239655,-256.89,0.0002199,2]
[312064537,1705594239664,-196.87781686,0.00021991,2]
[312064539,1705594239674,-155.46991048,0.00021991,2]
[312064541,1705594239683,-263543.66429958,0.00021997,2]
[312064543,1705594239692,-718.64,0.00021999,2]
[312064545,1705594239702,-711.28,0.00022,2]
[312064546,1705594239712,-733.57,0.00022,2]
[312064548,1705594239721,-155.0,0.00022,2]
[312064550,1705594239731,-2780.53772112,0.00022,2]
[312064552,1705594239740,-1041.88400935,0.00022,2]
[312064554,1705594239750,-207.66013193,0.00022,2]
[312064557,1705594239760,-571.09079843,0.00022,2]
[312064559,1705594239769,-2503.17802315,0.00022,2]
[312064561,1705594239779,-550.0,0.00022,3]
[312064563,1705594239788,-393.26675995,0.0002201,2]
[312064564,1705594239798,-2000.0,0.00022011,2]
[312064566,1705594239808,-200.0,0.00022011,2]
[312064568,1705594239817,-2000.0,0.00022011,2]
[312064570,1705594239827,-200.0,0.00022011,2]
[312064573,1705594239838,-2000.0,0.00022011,2]
[312064575,1705594239848,-200.0,0.00022011,2]
[312064577,1705594239857,-150.0,0.00022025,2]
[312064578,1705594239866,-2000.0,0.00022036,2]
[312064581,1705594239875,-200.0,0.00022036,2]
[312064583,1705594239886,-1339.95818137,0.00022043,2]
[312064585,1705594239897,-152.91,0.00022072,2]
[312064587,1705594239907,-3000.0,0.000221,2]
[312064589,1705594239917,-3000.0,0.0002211,2]
[312064591,1705594239926,-3000.0,0.0002212,2]
[312064593,1705594239935,-256.89,0.00022127,2]
[312064595,1705594239944,-3000.0,0.0002213,2]
[312064597,1705594239954,-215.86,0.00022133,2]
[312064599,1705594239963,-3000.0,0.0002214,2]
[312064601,1705594239973,-3000.0,0.0002215,2]
[312064603,1705594239983,-3000.0,0.0002216,2]
[312064605,1705594239992,-3000.0,0.0002217,2]
[312064607,1705594240001,-3000.0,0.0002218,2]
[312064609,1705594240010,-3000.0,0.0002219,2]
[312064611,1705594240019,-3000.0,0.000222,2]
[312064613,1705594240029,-3000.0,0.0002221,2]
[312064616,1705594240039,-3000.0,0.0002222,2]
[312064618,1705594240049,-160.0,0.00022229,2]
[312064621,1705594240058,-3000.0,0.0002223,2]
[312064623,1705594240067,-2000.0,0.00022231,2]
[312064625,1705594240077,-200.0,0.00022231,2]
[312064627,1705594240086,-200.0,0.00022231,2]
[312064629,1705594240095,-2000.0,0.00022231,2]
[312064631,1705594240104,-200.0,0.00022231,2]
[312064633,1705594240113,-152.91,0.00022236,2]
[312064635,1705594240122,-3000.0,0.0002224,2]
[312064637,1705594240131,-165.25,0.00022243,2]
[312064639,1705594240140,-150.0,0.00022243,2]
[312064641,1705594240149,-3000.0,0.0002225,2]
[312064643,1705594240158,-2000.0,0.00022257,2]
[312064645,1705594240167,-200.0,0.00022257,2]
[312064647,1705594240176,-3000.0,0.0002226,2]
[312064649,1705594240185,-256.89,0.00022264,2]
[312064651,1705594240194,-3000.0,0.0002227,2]
[312064653,1705594240203,-3000.0,0.0002228,2]
[312064655,1705594240213,-3000.0,0.0002229,2]
[312064657,1705594240222,-3000.0,0.000223,2]
[312064659,1705594240231,-393.26675995,0.00022302,2]
[312064661,1705594240240,-3000.0,0.0002231,2]
[312064663,1705594240249,-3000.0,0.0002232,2]
[312064665,1705594240259,-177.24,0.00022322,2]
[312064667,1705594240268,-165.89,0.00022327,2]
[312064669,1705594240277,-3000.0,0.0002233,2]
[312064671,1705594240286,-500.0,0.00022336,2]
[312064673,1705594240295,-150.0,0.00022336,2]
[312064675,1705594240304,-3000.0,0.0002234,2]
[312064677,1705594240314,-3000.0,0.0002235,2]
[312064679,1705594240323,-3000.0,0.0002236,2]
[312064681,1705594240331,-3000.0,0.0002237,2]
[312064683,1705594240341,-3000.0,0.0002238,2]
[312064685,1705594240350,-3000.0,0.0002239,2]
[312064687,1705594240359,-977.07799777,0.00022394,2]
[312064689,1705594240368,-2907.28249309,0.000224,2]
[312064691,1705594240381,-188.17269791,0.000224,2]
[312064693,1705594240390,-500.0,0.000224,8]
[312064695,1705594240399,-152.91,0.000224,2]
[312064698,1705594240408,-256.89,0.00022401,2]
[312064700,1705594240417,-729.81,0.00022431,2]
[312064701,1705594240426,-2000.0,0.00022453,2]
[312064704,1705594240436,-200.0,0.00022453,2]
[312064706,1705594240445,-200.0,0.00022453,2]
[312064708,1705594240454,-2000.0,0.00022453,2]
[312064710,1705594240464,-200.0,0.00022453,2]
[312064712,1705594240474,-2000.0,0.00022479,2]
[312064713,1705594240483,-200.0,0.00022479,2]
[312064716,1705594240492,-160.0,0.0002249,2]
[312064718,1705594240502,-12298.83057596,0.000225,2]
[312064720,1705594240511,-800.0,0.000225,8]
[312064722,1705594240520,-158.9,0.00022535,2]
[312064723,1705594240529,-256.89,0.00022538,2]
[312064726,1705594240538,-977.07799777,0.00022563,2]
[312064728,1705594240547,-152.91,0.00022564,2]
[312064730,1705594240557,-150.0,0.00022572,2]
[312064732,1705594240566,-158.66,0.00022589,2]
[312064735,1705594240575,-393.26675995,0.00022593,2]
[312064737,1705594240585,-1100.0,0.000226,8]
[312064739,1705594240594,-260.83531912,0.00022675,2]
[312064741,1705594240604,-2000.0,0.00022678,2]
[312064743,1705594240612,-200.0,0.00022678,2]
[312064745,1705594240622,-200.0,0.00022678,2]
[312064747,1705594240631,-2000.0,0.00022678,2]
[312064750,1705594240640,-200.0,0.00022678,2]
[312064753,1705594240649,-1400.0,0.000227,8]
[312064756,1705594240658,-985.23,0.000227,2]
[312064758,1705594240667,-155.54865615,0.00022701,2]
[312064760,1705594240676,-158.77,0.00022709,2]
[312064761,1705594240686,-152.91,0.00022728,2]
[312064762,1705594240696,-977.07799777,0.00022731,2]
[312064763,1705594240705,-160.0,0.00022752,2]
[312064764,1705594240715,-150.0,0.00022764,2]
[312064765,1705594240724,-154.0,0.00022766,2]
[312064766,1705594240734,-4907.21632641,0.0002277,2]
[312064768,1705594240743,-1876.91,0.00022773,2]
[312064795,1705594241004,-200.0,0.000228,8]
[312064797,1705594241013,-180.0,0.00022815,2]
[312064799,1705594241022,-738.08,0.00022846,2]
[312064801,1705594241031,-150.0,0.00022859,2]
[312064803,1705594241040,-500.0,0.00022884,2]
[312064805,1705594241049,-393.26675995,0.00022884,2]
[312064806,1705594241059,-182.9562349,0.00022884,2]
[312064808,1705594241068,-269.51832557,0.00022884,2]
[312064810,1705594241077,-6229.25442952,0.00022884,2]
[312064812,1705594241086,-177.41890368,0.00022884,4]
[312064814,1705594241095,-195.01035848,0.00022884,6]
[312064816,1705594241104,-195.01035845,0.00022888,6]
[312064818,1705594241113,-152.91,0.00022892,2]
[312064820,1705594241123,-269.51832555,0.00022892,2]
[312064822,1705594241132,-6229.25442952,0.00022892,2]
[312064824,1705594241142,-195.01035845,0.00022892,6]
[312064826,1705594241151,-165.25,0.00022899,2]
[312064828,1705594241160,-4922.72186418,0.000229,2]
[312064830,1705594241170,-165.92298532,0.000229,2]
[312064832,1705594241179,-184.13974982,0.000229,2]
[312064834,1705594241189,-150.82535447,0.000229,2]
[312064836,1705594241199,-1390.33,0.000229,2]
[312064838,1705594241210,-2889.52,0.000229,2]
[312064840,1705594241220,-977.07799777,0.000229,2]
[312064842,1705594241229,-970.01,0.000229,2]
[312064844,1705594241239,-269.51832555,0.000229,2]
[312064846,1705594241248,-6229.25442952,0.000229,2]
[312064848,1705594241257,-200.0,0.000229,8]
[312064850,1705594241267,-500.0,0.00022933,2]
[312064852,1705594241276,-500.0,0.00022933,2]
[312064854,1705594241285,-150.0,0.00022934,2]
[312064856,1705594241295,-150.0,0.00022937,2]
[312064858,1705594241305,-500.0,0.00022942,2]
[312064860,1705594241315,-500.0,0.00022942,2]
[312064862,1705594241325,-150.0,0.00022949,2]
[312064864,1705594241334,-500.0,0.00022951,2]
[312064866,1705594241343,-500.0,0.00022951,2]
[312064868,1705594241353,-500.0,0.0002296,2]
[312064870,1705594241362,-500.0,0.0002296,2]
[312064872,1705594241372,-160.0,0.00022962,2]
[312064874,1705594241381,-2099.82867613,0.00022962,2]
[312064877,1705594241393,-257.07501899,0.00022962,2]
[312064882,1705594241430,-13643.09630488,0.00022962,2]
[312064884,1705594241440,-150.0,0.00022963,2]
[312064886,1705594241449,-500.0,0.00022969,2]
[312064888,1705594241457,-500.0,0.00022969,2]
[312064890,1705594241467,-1000.0,0.0002297,2]
[312064892,1705594241476,-1280.89788928,0.0002297,2]
[312064894,1705594241484,-600.0,0.0002297,2]
[312064895,1705594241494,-1000.0,0.0002297,2]
[312064897,1705594241503,-1529.38995709,0.00022974,2]
[312064900,1705594241516,-5.57410922,0.00022974,2]
[312064902,1705594241525,-691.09032614,0.00022974,2]
[312064904,1705594241536,-843.87374017,0.00022974,2]
[312064906,1705594241546,-500.0,0.00022977,2]
[312064908,1705594241555,-500.0,0.00022977,2]
[312064910,1705594241564,-150.0,0.00022983,2]
[312064912,1705594241573,-150.0,0.00022983,2]
[312064914,1705594241582,-435.87771536,0.00022984,3]
[312064917,1705594241598,-22658.63600001,0.00022984,3]
[312064919,1705594241609,-4096.72364498,0.00022984,3]
[312064922,1705594241632,-2365.80486952,0.00022984,3]
[312064925,1705594241643,-1877219.81955183,0.00022984,3]
[312064926,1705594241653,-5792.3148406,0.00022984,2]
[312064928,1705594241662,-67745.823493,0.00022984,2]
[312064930,1705594241671,-1866.0374059,0.00022984,2]
[312064932,1705594241680,-2342.0745456,0.00022984,2]
[312064934,1705594241689,-27319.4623581,0.00022984,2]
[312064936,1705594241698,-88704.8607747,0.00022984,2]
[312064938,1705594241707,-14366.6629811,0.00022984,2]
[312064940,1705594241716,-31289.9441269,0.00022984,2]
[312064942,1705594241725,-500.0,0.00022985,2]
[312064945,1705594241735,-500.0,0.00022986,2]
[312064946,1705594241744,-500.0,0.00022986,2]
[312064948,1705594241753,-103240.0,0.00022986,2]
[312064950,1705594241762,-150.0,0.00022993,2]
[312064951,1705594241771,-279.24625351,0.00022994,2]
[312064952,1705594241780,-1136.22308606,0.00022995,2]
[312064953,1705594241790,-500.0,0.00022995,2]
[312064954,1705594241801,-500.0,0.00022995,2]
[312064955,1705594241811,-520.58684909,0.00022996,2]
[312064956,1705594241820,-165.89,0.00022997,2]
[312064957,1705594241829,-155.95609402,0.00022997,2]
[312064958,1705594241839,-157.99040808,0.00022998,7]
[312064959,1705594241848,-150.0,0.00022999,2]
[312064960,1705594241857,-150.0,0.00022999,2]
[312064961,1705594241867,-150.0,0.00022999,2]
[312064963,1705594241876,-150.0,0.00022999,2]
[312064965,1705594241887,-150.0,0.00022999,2]
[312064966,1705594241897,-150.0,0.00022999,2]
[312064967,1705594241907,-150.0,0.00022999,2]
[312064968,1705594241916,-150.0,0.00022999,2]
[312064969,1705594241925,-150.0,0.00022999,2]
[312064970,1705594241934,-150.0,0.00022999,2]
[312064971,1705594241943,-150.0,0.00022999,2]
[312064972,1705594241952,-150.0,0.00022999,2]
[312064973,1705594241961,-150.0,0.00022999,2]
[312064974,1705594241971,-150.0,0.00022999,2]
[312064975,1705594241980,-150.0,0.00022999,2]
[312064976,1705594241989,-150.0,0.00022999,2]
[312064977,1705594241998,-2622120.17295868,0.00023,2]
[312064978,1705594242007,-5225170.66469596,0.00023,2]
[312064979,1705594242016,-231.65788442,0.00023,2]
[312064980,1705594242025,-229.76031898,0.00023,2]
[312064981,1705594242035,-151.0,0.00023,7]
[312064982,1705594242045,-151.0,0.00023,7]
[312064983,1705594242054,-151.0,0.00023,7]
[312064984,1705594242064,-151.0,0.00023,7]
[312064985,1705594242073,-154.0,0.00023,2]
[312064986,1705594242083,-154.0,0.00023,2]
[312064987,1705594242092,-160.0,0.00023013,2]
[312064988,1705594242102,-150.0,0.00023036,2]
[312064989,1705594242111,-152.91,0.00023056,2]
[312064990,1705594242120,-150.0,0.00023067,2]
[312064991,1705594242129,-177.24,0.00023101,2]
[312064992,1705594242139,-11537.72992349,0.0002313,2]
[312064993,1705594242148,-150.0,0.0002313,2]
[312064994,1705594242157,-500.0,0.00023154,2]
[312064995,1705594242167,-150.0,0.00023191,2]
[312064996,1705594242176,-152.91,0.0002322,2]
[312064997,1705594242185,-150.0,0.0002324,2]
[312064998,1705594242194,-160.0,0.00023275,2]
[312064999,1705594242204,-500.0,0.00023288,4]
[312065000,1705594242215,-500.0,0.00023288,4]
[312065001,1705594242224,-419.2730407,0.00023288,4]
[312065002,1705594242232,-473.43109307,0.00023288,4]
[312065004,1705594242241,-500.0,0.00023288,4]
[312065005,1705594242250,-500.0,0.00023288,4]
[312065006,1705594242259,-500.0,0.00023288,4]
[312065008,1705594242267,-445.65113149,0.00023288,4]
[312065009,1705594242277,-500.0,0.00023288,4]
[312065010,1705594242286,-500.0,0.00023288,4]
[312065012,1705594242296,-220.97329468,0.00023288,4]
[312065013,1705594242305,-500.0,0.00023288,4]
[312065014,1705594242314,-500.0,0.00023288,4]
[312065015,1705594242325,-500.0,0.00023288,4]
[312065016,1705594242334,-500.0,0.00023288,4]
[312065017,1705594242343,-500.0,0.00023288,4]
[312065018,1705594242351,-500.0,0.00023288,4]
[312065019,1705594242360,-565.91654853,0.00023288,4]
[312065020,1705594242369,-500.0,0.00023288,4]
[312065021,1705594242378,-500.0,0.00023288,4]
[312065022,1705594242387,-500.0,0.00023288,4]
[312065023,1705594242396,-500.0,0.00023288,2]
[312065024,1705594242405,-366.73345737,0.00023288,2]
[312065025,1705594242415,-500.0,0.00023288,2]
[312065026,1705594242424,-500.0,0.00023288,2]
[312065027,1705594242433,-499.17770784,0.00023288,2]
[312065028,1705594242442,-500.0,0.00023288,2]
[312065029,1705594242451,-367.01483328,0.00023288,2]
[312065030,1705594242461,-500.0,0.00023288,2]
[312065031,1705594242470,-500.0,0.00023288,2]
[312065032,1705594242479,-500.0,0.00023288,2]
[312065033,1705594242488,-498.3838671,0.00023288,2]
[312065034,1705594242497,-500.0,0.00023288,2]
[312065035,1705594242506,-500.0,0.00023288,2]
[312065036,1705594242516,-500.0,0.00023288,2]
[312065037,1705594242526,-500.0,0.00023288,2]
[312065038,1705594242535,-500.0,0.00023288,2]
[312065039,1705594242544,-500.0,0.00023288,2]
[312065040,1705594242553,-500.0,0.00023288,2]
[312065041,1705594242562,-500.0,0.00023288,2]
[312065042,1705594242572,-500.0,0.00023288,2]
[312065043,1705594242581,-500.0,0.00023288,2]
[312065044,1705594242591,-500.0,0.00023288,2]
[312065045,1705594242600,-500.0,0.00023288,2]
[312065046,1705594242609,-597.61130566,0.00023288,2]
[312065047,1705594242618,-500.0,0.00023288,2]
[312065048,1705594242627,-500.0,0.00023288,2]
[312065049,1705594242636,-500.0,0.00023288,2]
[312065050,1705594242645,-500.0,0.00023288,2]
[312065051,1705594242654,-205.0,0.00023299,4]
[312065052,1705594242663,-500.0,0.00023323,2]
[312065053,1705594242673,-200.0,0.00023323,2]
[312065054,1705594242682,-158.9,0.00023324,2]
[312065055,1705594242691,-239.22,0.0002335,2]
[312065056,1705594242700,-150.0,0.00023351,2]
[312065057,1705594242709,-1000.0,0.00023356,2]
[312065058,1705594242719,-152.91,0.00023383,2]
[312065059,1705594242728,-150.0,0.00023403,2]
[312065060,1705594242737,-475.48,0.00023432,2]
[312065061,1705594242746,-150.0,0.00023476,2]
[312065062,1705594242755,-500.0,0.00023492,2]
[312065063,1705594242764,-160.0,0.00023536,2]
[312065064,1705594242773,-152.91,0.00023547,2]
[312065065,1705594242782,-165.25,0.00023555,2]
[312065066,1705594242792,-150.0,0.00023575,2]
[312065067,1705594242802,-1876.91,0.00023579,2]
[312065068,1705594242812,-150.0,0.00023581,2]
[312065069,1705594242821,-200000.0,0.0002362,2]
[312065070,1705594242830,-500.0,0.0002366,2]
[312065071,1705594242840,-830.0,0.00023663,2]
[312065072,1705594242850,-165.89,0.00023667,2]
[312065073,1705594242859,-1000.0,0.0002367,2]
[312065074,1705594242868,-500.0,0.0002367,2]
[312065075,1705594242878,-985.23,0.00023679,2]
[312065076,1705594242887,-150.0,0.00023702,2]
[312065077,1705594242896,-152.91,0.00023711,2]
[312065078,1705594242905,-158.66,0.00023718,2]
[312065079,1705594242914,-210.0,0.00023761,2]
[312065080,1705594242923,-160.0,0.00023798,2]
[312065081,1705594242932,-2874.0,0.000238,2]
[312065082,1705594242941,-27162.0,0.000238,2]
[312065083,1705594242950,-500.0,0.00023829,2]
[312065084,1705594242960,-152.91,0.00023875,2]
[312065085,1705594242970,-177.24,0.00023879,2]
[312065086,1705594242979,-4922.72186408,0.0002388,2]
[312065087,1705594242988,-150.0,0.00023899,2]
[312065088,1705594242997,-500.0,0.0002397,2]
[312065089,1705594243007,-1000.0,0.0002397,2]
[312065090,1705594243017,-150.0,0.00023991,2]
[312065091,1705594243027,-500.0,0.00023998,2]
[312065092,1705594243036,-259.96331578,0.00024,2]
[312065093,1705594243046,-431.53216335,0.00024,2]
[312065094,1705594243055,-306.18581609,0.00024,2]
[312065095,1705594243064,-600.0,0.00024,3]
[312065096,1705594243073,-150.0,0.00024001,2]
[312065097,1705594243084,-160.0,0.00024059,2]
[312065098,1705594243093,-150.82535441,0.00024066,2]
[312065099,1705594243103,-706.59506286,0.000241,2]
[312065100,1705594243112,-250.0,0.000241,2]
[312065101,1705594243122,-158.9,0.00024112,2]
[312065102,1705594243131,-514.40879808,0.00024152,2]
[312065103,1705594243141,-150.0,0.00024164,2]
[312065104,1705594243151,-500.0,0.00024167,2]
[312065105,1705594243160,-150.0,0.00024195,2]
[312065106,1705594243170,-165.25,0.00024211,2]
[312065107,1705594243179,-150.0,0.00024222,2]
[312065108,1705594243189,-150.0,0.00024247,2]
[312065109,1705594243198,-150.0,0.00024292,2]
[312065110,1705594243208,-167.0,0.00024297,2]
[312065111,1705594243218,-500.0,0.00024336,2]
[312065112,1705594243226,-165.89,0.00024336,2]
[312065113,1705594243236,-150.0,0.00024341,2]
[312065114,1705594243245,-150.0,0.00024343,2]
[312065115,1705594243254,-1876.91,0.00024384,2]
[312065116,1705594243263,-150.0,0.00024421,2]
[312065117,1705594243272,-150.0,0.00024424,2]
[312065118,1705594243283,-150.0,0.00024464,2]
[312065119,1705594243292,-150.0,0.00024469,2]
[312065120,1705594243302,-150.0,0.00024485,2]
[312065121,1705594243311,-1355.0,0.00024489,2]
[312065122,1705594243320,-337.023,0.00024489,2]
[312065123,1705594243329,-1854.0,0.00024489,2]
[312065124,1705594243338,-836.0,0.00024489,2]
[312065125,1705594243347,-500.0,0.00024505,2]
[312065126,1705594243357,-150.0,0.00024554,2]
[312065127,1705594243366,-946.0,0.00024629,2]
[312065128,1705594243375,-1234.0,0.00024629,2]
[312065129,1705594243384,-1249.0,0.00024629,2]
[312065130,1705594243393,-507.0,0.00024629,2]
[312065131,1705594243402,-319.0,0.00024629,2]
[312065132,1705594243412,-877.0,0.00024629,2]
[312065133,1705594243421,-1138.0,0.00024629,2]
[312065134,1705594243430,-985.23,0.00024657,2]
[312065135,1705594243439,-237.28,0.00024658,4]
[312065136,1705594243448,-250.0,0.00024658,2]
[312065137,1705594243457,-150.0,0.00024658,2]
[312065138,1705594243467,-150.0,0.00024658,2]
[312065139,1705594243476,-150.0,0.00024658,2]
[312065140,1705594243485,-150.0,0.00024658,2]
[312065141,1705594243494,-150.0,0.00024658,2]
[312065142,1705594243503,-150.0,0.00024658,2]
[312065143,1705594243516,-150.0,0.00024658,2]
[312065144,1705594243527,-150.0,0.00024658,2]
[312065145,1705594243536,-150.0,0.00024658,2]
[312065146,1705594243546,-150.0,0.00024658,2]
[312065148,1705594243555,-150.0,0.00024658,2]
[312065151,1705594243564,-150.0,0.00024658,2]
[312065152,1705594243573,-150.0,0.00024658,2]
[312065153,1705594243583,-150.0,0.00024658,2]
[312065154,1705594243592,-150.0,0.00024658,2]
[312065155,1705594243606,-150.0,0.00024658,2]
[312065156,1705594243615,-150.0,0.00024658,2]
[312065157,1705594243624,-150.0,0.00024658,2]
[312065158,1705594243634,-150.0,0.00024658,2]
[312065159,1705594243643,-151.72289899,0.00024658,2]
[312065160,1705594243652,-150.0,0.00024662,2]
[312065161,1705594243663,-500.0,0.00024674,2]
[312065162,1705594243672,-150.0,0.00024687,2]
[312065163,1705594243682,-12789.42057024,0.00024688,2]
[312065164,1705594243692,-18404.07,0.00024689,2]
[312065165,1705594243702,-2905.0,0.00024689,2]
[312065166,1705594243712,-3643.869,0.00024689,2]
[312065167,1705594243725,-19705.0,0.00024689,2]
[312065168,1705594243735,-2273.0,0.00024689,2]
[312065169,1705594243745,-2396.015,0.00024689,2]
[312065170,1705594243754,-1029.0,0.00024689,2]
[312065171,1705594243764,-150.0,0.000247,2]
[312065172,1705594243774,-150.0,0.00024704,2]
[312065173,1705594243783,-150.0,0.00024706,2]
[312065174,1705594243794,-150.0,0.00024736,2]
[312065175,1705594243804,-150.0,0.00024829,2]
[312065176,1705594243813,-150.0,0.00024829,2]
[312065177,1705594243822,-150.0,0.00024829,2]
[312065178,1705594243832,-500.0,0.00024843,2]
[312065179,1705594243845,-158.66,0.00024848,2]
[312065180,1705594243854,-4922.72186408,0.0002486,2]
[312065181,1705594243863,-165.25,0.00024868,2]
[312065182,1705594243872,-150.0,0.00024869,2]
[312065183,1705594243882,-158.9,0.00024901,2]
[312065184,1705594243891,-150.0,0.00024941,2]
[312065185,1705594243901,-150.0,0.00024951,2]
[312065186,1705594243910,-150.0,0.00024989,2]
[312065187,1705594243920,-242.41424352,0.00025,2]
[312065188,1705594243930,-933.68908946,0.00025,2]
[312065189,1705594243939,-150.0,0.00025,2]
[312065190,1705594243949,-158.67264273,0.00025,2]
[312065191,1705594243959,-1355.37564383,0.00025,2]
[312065192,1705594243972,-302.84681763,0.00025,2]
[312065193,1705594243982,-1248.38542045,0.00025,2]
[312065194,1705594243992,-167.05182833,0.00025,2]
[312065195,1705594244001,-209962.84664275,0.00025,2]
[312065196,1705594244011,-20000.0,0.00025,2]
[312065197,1705594244022,-165.89,0.00025006,2]
[312065198,1705594244033,-500.0,0.00025012,2]
[312065199,1705594244042,-205.0,0.00025047,7]
[312065200,1705594244052,-150.0,0.00025068,2]
[312065201,1705594244061,-167.0,0.00025099,2]
[312065202,1705594244070,-150.0,0.00025107,2]
[312065203,1705594244080,-150.0,0.00025129,2]
[312065204,1705594244089,-150.0,0.00025157,2]